[Event "Late-Titled-Tuesday-Blitz-May-28-2024"]
[Site "Chess.com"]
[Date "2024.05.28"]
[Round "10"]
[White "Hikaru"]
[Black "hansen"]
[Result "1-0"]
[WhiteElo "3229"]
[BlackElo "3060"]
[TimeControl "180+1"]
[EndTime "15:53:54 PDT"]
[Termination "Hikaru won by resignation"]

1. e4 {[%clk 0:03:00.9]} 1... e5 {[%clk 0:02:58.5]} 2. Bc4 {[%clk 0:03:00.4]}
2... Nf6 {[%clk 0:02:54.3]} 3. d3 {[%clk 0:03:00.4]} 3... c6 {[%clk 0:02:54.3]}
4. Nf3 {[%clk 0:03:00.2]} 4... d5 {[%clk 0:02:51.5]} 5. Bb3 {[%clk 0:03:00.3]}
5... a5 {[%clk 0:02:46.9]} 6. a3 {[%clk 0:02:59.1]} 6... Bd6 {[%clk 0:02:37.4]}
7. Nc3 {[%clk 0:02:58.2]} 7... a4 {[%clk 0:02:31.7]} 8. Ba2 {[%clk 0:02:58.4]}
8... h6 {[%clk 0:02:03.9]} 9. O-O {[%clk 0:02:44.5]} 9... dxe4 {[%clk 0:01:59]}
10. dxe4 {[%clk 0:02:32.8]} 10... O-O {[%clk 0:01:59]} 11. Nh4 {[%clk
0:02:32.5]} 11... Bg4 {[%clk 0:01:54.5]} 12. Qd3 {[%clk 0:02:31]} 12... Bc7
{[%clk 0:01:30.2]} 13. Qg3 {[%clk 0:02:29]} 13... Kh7 {[%clk 0:01:26.8]} 14. Be3
{[%clk 0:02:10.3]} 14... Nbd7 {[%clk 0:01:26.1]} 15. h3 {[%clk 0:02:06.4]} 15...
Bh5 {[%clk 0:01:22.1]} 16. Nf5 {[%clk 0:01:59.5]} 16... Bg6 {[%clk 0:01:17.2]}
17. Qf3 {[%clk 0:01:59.3]} 17... Bb6 {[%clk 0:01:10]} 18. Rad1 {[%clk
0:01:50.8]} 18... Bxe3 {[%clk 0:01:10]} 19. Qxe3 {[%clk 0:01:51.7]} 19... Bxf5
{[%clk 0:00:55.5]} 20. exf5 {[%clk 0:01:52.6]} 20... Qb6 {[%clk 0:00:45]} 21.
Qxb6 {[%clk 0:01:45.3]} 21... Nxb6 {[%clk 0:00:45.9]} 22. Rfe1 {[%clk
0:01:45.8]} 22... Rae8 {[%clk 0:00:40.3]} 23. Ne4 {[%clk 0:01:45.9]} 23... Re7
{[%clk 0:00:32.7]} 24. f4 {[%clk 0:01:22.2]} 24... Nfd5 {[%clk 0:00:09.8]} 25.
fxe5 {[%clk 0:01:20.3]} 25... Rxe5 {[%clk 0:00:09.9]} 26. Ng5+ {[%clk
0:01:20.1]} 26... hxg5 {[%clk 0:00:09.3]} 27. Rxe5 {[%clk 0:01:20.7]} 27... Kh6
{[%clk 0:00:04.6]} 28. Rde1 {[%clk 0:01:06]} 28... Nf6 {[%clk 0:00:02.4]} 29.
Re7 {[%clk 0:01:05.9]} 29... Nbd5 {[%clk 0:00:02.3]} 30. Rxb7 {[%clk 0:01:03.8]}
1-0

[Event "Late-Titled-Tuesday-Blitz-May-28-2024"]
[Site "Chess.com"]
[Date "2024.05.28"]
[Round "10"]
[White "SHIVACalypso"]
[Black "RaugintaBulba"]
[Result "0-1"]
[WhiteElo "2530"]
[BlackElo "2456"]
[TimeControl "180+1"]
[EndTime "15:54:08 PDT"]
[Termination "RaugintaBulba won by resignation"]

1. e4 {[%clk 0:03:00.9]} 1... c5 {[%clk 0:02:57.4]} 2. b4 {[%clk 0:02:59.7]}
2... cxb4 {[%clk 0:02:57.2]} 3. a3 {[%clk 0:02:59.9]} 3... e6 {[%clk 0:02:55.2]}
4. Nf3 {[%clk 0:02:57.5]} 4... d5 {[%clk 0:02:54.8]} 5. e5 {[%clk 0:02:57.7]}
5... Nc6 {[%clk 0:02:54.6]} 6. axb4 {[%clk 0:02:55.8]} 6... Bxb4 {[%clk
0:02:54.2]} 7. c3 {[%clk 0:02:56.2]} 7... Be7 {[%clk 0:02:54.8]} 8. d4 {[%clk
0:02:56.7]} 8... Bd7 {[%clk 0:02:55]} 9. Bd3 {[%clk 0:02:53.4]} 9... b5 {[%clk
0:02:55.1]} 10. h4 {[%clk 0:02:46.9]} 10... a5 {[%clk 0:02:50]} 11. h5 {[%clk
0:02:36.2]} 11... h6 {[%clk 0:02:48.5]} 12. Na3 {[%clk 0:02:26.6]} 12... b4
{[%clk 0:02:26]} 13. Nb5 {[%clk 0:02:23.8]} 13... bxc3 {[%clk 0:02:21.5]} 14.
Nxc3 {[%clk 0:02:20.3]} 14... Bb4 {[%clk 0:02:19]} 15. Bd2 {[%clk 0:02:20.4]}
15... Nge7 {[%clk 0:02:16.9]} 16. Rh3 {[%clk 0:02:09.4]} 16... Nf5 {[%clk
0:02:13.7]} 17. Bxf5 {[%clk 0:02:05.8]} 17... exf5 {[%clk 0:02:14.6]} 18. Rg3
{[%clk 0:02:03.2]} 18... f4 {[%clk 0:01:40.2]} 19. Rxg7 {[%clk 0:01:36.8]} 19...
Kf8 {[%clk 0:01:39.2]} 20. Nxd5 {[%clk 0:01:33]} 20... Kxg7 {[%clk 0:01:36.4]}
21. Bxb4 {[%clk 0:01:27]} 21... Nxb4 {[%clk 0:01:32.3]} 22. Nxf4 {[%clk
0:01:25]} 22... Bg4 {[%clk 0:01:32.2]} 23. Qb3 {[%clk 0:01:09.7]} 23... Rc8
{[%clk 0:01:16.3]} 24. Rd1 {[%clk 0:00:59.1]} 24... Nc2+ {[%clk 0:01:06.3]} 25.
Kf1 {[%clk 0:00:57.7]} 25... Nxd4 {[%clk 0:00:53.6]} 26. Qe3 {[%clk 0:00:28.7]}
26... Nf5 {[%clk 0:00:47.6]} 27. Qe2 {[%clk 0:00:19.2]} 27... Qh4 {[%clk
0:00:42.6]} 28. e6 {[%clk 0:00:19.6]} 28... Qh1+ {[%clk 0:00:40.8]} 0-1

[Event "Late-Titled-Tuesday-Blitz-May-28-2024"]
[Site "Chess.com"]
[Date "2024.05.28"]
[Round "10"]
[White "WilsonPalencia21"]
[Black "Caterpiller35"]
[Result "1-0"]
[WhiteElo "2579"]
[BlackElo "2458"]
[TimeControl "180+1"]
[EndTime "15:54:11 PDT"]
[Termination "WilsonPalencia21 won by resignation"]

1. d4 {[%clk 0:03:00.9]} 1... Nf6 {[%clk 0:02:59.6]} 2. c4 {[%clk 0:02:56.8]}
2... e6 {[%clk 0:02:59.5]} 3. Nf3 {[%clk 0:02:56.2]} 3... Bb4+ {[%clk
0:02:58.2]} 4. Nbd2 {[%clk 0:02:56.3]} 4... d6 {[%clk 0:02:54.8]} 5. g3 {[%clk
0:02:51.2]} 5... O-O {[%clk 0:02:54.2]} 6. Bg2 {[%clk 0:02:51.4]} 6... Nbd7
{[%clk 0:02:53.7]} 7. O-O {[%clk 0:02:51.6]} 7... c5 {[%clk 0:02:52.8]} 8. Nb3
{[%clk 0:02:43.9]} 8... cxd4 {[%clk 0:02:50]} 9. Nbxd4 {[%clk 0:02:41.9]} 9...
a6 {[%clk 0:02:48.9]} 10. a3 {[%clk 0:02:41.8]} 10... Bc5 {[%clk 0:02:48.8]} 11.
b4 {[%clk 0:02:41.9]} 11... Ba7 {[%clk 0:02:49.3]} 12. Bb2 {[%clk 0:02:41.5]}
12... Ne5 {[%clk 0:02:24.8]} 13. Nxe5 {[%clk 0:02:35.5]} 13... dxe5 {[%clk
0:02:24.3]} 14. Nf3 {[%clk 0:02:35.9]} 14... e4 {[%clk 0:02:24]} 15. Ng5 {[%clk
0:02:24.1]} 15... e3 {[%clk 0:02:20.3]} 16. f4 {[%clk 0:02:24]} 16... h6 {[%clk
0:02:14.4]} 17. Qxd8 {[%clk 0:01:24.8]} 17... Rxd8 {[%clk 0:02:15.3]} 18. Bxf6
{[%clk 0:01:25]} 18... gxf6 {[%clk 0:02:11.9]} 19. Ne4 {[%clk 0:01:23.9]} 19...
f5 {[%clk 0:02:01.3]} 20. Nc3 {[%clk 0:01:23.5]} 20... Rd2 {[%clk 0:01:55.5]}
21. c5 {[%clk 0:01:20.7]} 21... Rb8 {[%clk 0:01:47.4]} 22. Rfd1 {[%clk
0:01:17.6]} 22... Rc2 {[%clk 0:01:28.6]} 23. Rac1 {[%clk 0:01:09.4]} 23... Rxc1
{[%clk 0:01:25.9]} 24. Rxc1 {[%clk 0:01:08.6]} 24... Bd7 {[%clk 0:01:26.8]} 25.
Nd1 {[%clk 0:01:05]} 25... Bb5 {[%clk 0:01:25.7]} 26. Bf3 {[%clk 0:01:01.7]}
26... Rd8 {[%clk 0:01:14.4]} 27. Nxe3 {[%clk 0:00:58.5]} 27... Rd2 {[%clk
0:01:09]} 28. Rc2 {[%clk 0:00:56.8]} 28... Rd4 {[%clk 0:00:58.5]} 29. Bxb7
{[%clk 0:00:50.1]} 29... a5 {[%clk 0:00:57.2]} 30. Rb2 {[%clk 0:00:41.7]} 30...
axb4 {[%clk 0:00:54.7]} 31. axb4 {[%clk 0:00:40.7]} 31... Bxe2 {[%clk
0:00:51.5]} 32. Rxe2 {[%clk 0:00:34.7]} 32... Rd8 {[%clk 0:00:52.3]} 33. Nc4
{[%clk 0:00:32.1]} 33... Rd4 {[%clk 0:00:51.1]} 34. Rc2 {[%clk 0:00:28.1]} 34...
Kg7 {[%clk 0:00:48.5]} 35. Kf1 {[%clk 0:00:28.3]} 35... Kf6 {[%clk 0:00:48.1]}
36. c6 {[%clk 0:00:24.9]} 36... Bb8 {[%clk 0:00:45.9]} 37. b5 {[%clk 0:00:24.8]}
1-0

[Event "Late-Titled-Tuesday-Blitz-May-28-2024"]
[Site "Chess.com"]
[Date "2024.05.28"]
[Round "10"]
[White "ZachHKL"]
[Black "Flaccidmoves"]
[Result "1-0"]
[WhiteElo "2391"]
[BlackElo "2484"]
[TimeControl "180+1"]
[EndTime "15:54:12 PDT"]
[Termination "ZachHKL won by resignation"]

1. e4 {[%clk 0:03:00.9]} 1... e5 {[%clk 0:02:58.8]} 2. Nf3 {[%clk 0:03:00.6]}
2... Nc6 {[%clk 0:02:59.4]} 3. Nc3 {[%clk 0:02:58.5]} 3... Nf6 {[%clk 0:02:59]}
4. d4 {[%clk 0:02:58.4]} 4... exd4 {[%clk 0:02:58.5]} 5. Nxd4 {[%clk 0:02:58.2]}
5... Bb4 {[%clk 0:02:59.1]} 6. Nxc6 {[%clk 0:02:58.6]} 6... bxc6 {[%clk
0:02:58.5]} 7. Bd3 {[%clk 0:02:59.2]} 7... O-O {[%clk 0:02:58.2]} 8. O-O {[%clk
0:02:59.1]} 8... d5 {[%clk 0:02:56.9]} 9. exd5 {[%clk 0:02:58.3]} 9... cxd5
{[%clk 0:02:56.4]} 10. Qf3 {[%clk 0:02:58.7]} 10... c6 {[%clk 0:02:55.1]} 11.
Bg5 {[%clk 0:02:58.2]} 11... Be7 {[%clk 0:02:53]} 12. h3 {[%clk 0:02:56.4]}
12... Rb8 {[%clk 0:02:50.5]} 13. b3 {[%clk 0:02:53.6]} 13... h6 {[%clk
0:02:45.9]} 14. Bxh6 {[%clk 0:02:52.6]} 14... Bg4 {[%clk 0:02:27.7]} 15. hxg4
{[%clk 0:02:50.9]} 15... gxh6 {[%clk 0:02:26.7]} 16. Ne2 {[%clk 0:02:45.5]}
16... Kh8 {[%clk 0:02:18.9]} 17. Qf4 {[%clk 0:02:37.2]} 17... Ng8 {[%clk
0:02:06.6]} 18. Qf5 {[%clk 0:02:35.5]} 18... Nf6 {[%clk 0:02:07.2]} 19. g5
{[%clk 0:02:32.8]} 19... Ne4 {[%clk 0:01:48.9]} 20. Bxe4 {[%clk 0:02:24.5]}
20... dxe4 {[%clk 0:01:49.8]} 21. gxh6 {[%clk 0:02:19.7]} 21... Qd5 {[%clk
0:01:44.3]} 22. Qxd5 {[%clk 0:02:17.5]} 22... cxd5 {[%clk 0:01:44.1]} 23. Rad1
{[%clk 0:02:17.4]} 23... Rfd8 {[%clk 0:01:41.2]} 24. Nc3 {[%clk 0:02:12.7]}
24... Rbc8 {[%clk 0:01:33.1]} 25. Nxd5 {[%clk 0:02:12.4]} 25... Bg5 {[%clk
0:01:33.3]} 26. c4 {[%clk 0:02:11.7]} 26... Kh7 {[%clk 0:01:31.7]} 27. Rfe1
{[%clk 0:02:09.3]} 27... f5 {[%clk 0:01:31.5]} 28. f3 {[%clk 0:02:07]} 28...
exf3 {[%clk 0:01:29.8]} 29. gxf3 {[%clk 0:02:07.9]} 29... Kxh6 {[%clk
0:01:29.1]} 30. Re6+ {[%clk 0:02:06.8]} 30... Kg7 {[%clk 0:01:27.4]} 31. f4
{[%clk 0:02:03.7]} 31... Bxf4 {[%clk 0:01:21.1]} 32. Re7+ {[%clk 0:02:01.2]}
32... Kh6 {[%clk 0:01:18.2]} 33. Rxa7 {[%clk 0:02:00.1]} 33... Kg5 {[%clk
0:01:08.5]} 34. Rg7+ {[%clk 0:01:57.9]} 34... Kh6 {[%clk 0:00:53]} 35. Rg2
{[%clk 0:01:57.4]} 35... Bg5 {[%clk 0:00:47.8]} 36. Kf2 {[%clk 0:01:53]} 36...
Bh4+ {[%clk 0:00:40.3]} 37. Kf3 {[%clk 0:01:52.1]} 37... Rg8 {[%clk 0:00:38.8]}
38. Rh2 {[%clk 0:01:48]} 38... Rg4 {[%clk 0:00:31.8]} 39. Rdh1 {[%clk
0:01:36.7]} 39... Kg5 {[%clk 0:00:29.9]} 40. Rg2 {[%clk 0:01:24.1]} 40... Ra8
{[%clk 0:00:24.5]} 41. Rhg1 {[%clk 0:01:20.3]} 41... Rxa2 {[%clk 0:00:17]} 42.
Rxg4+ {[%clk 0:01:19.5]} 42... fxg4+ {[%clk 0:00:17.9]} 43. Rxg4+ {[%clk
0:01:20.1]} 43... Kh5 {[%clk 0:00:15.8]} 44. Nf4+ {[%clk 0:01:20.2]} 1-0

[Event "Late-Titled-Tuesday-Blitz-May-28-2024"]
[Site "Chess.com"]
[Date "2024.05.28"]
[Round "10"]
[White "atalz0"]
[Black "jcmesafischer"]
[Result "1-0"]
[WhiteElo "2490"]
[BlackElo "2364"]
[TimeControl "180+1"]
[EndTime "15:54:12 PDT"]
[Termination "atalz0 won by checkmate"]

1. d4 {[%clk 0:03:00.9]} 1... Nf6 {[%clk 0:02:57.2]} 2. c4 {[%clk 0:03:00.9]}
2... e6 {[%clk 0:02:56]} 3. Nc3 {[%clk 0:03:00.4]} 3... Bb4 {[%clk 0:02:52.1]}
4. Qc2 {[%clk 0:03:00]} 4... O-O {[%clk 0:02:45.6]} 5. e4 {[%clk 0:02:59]} 5...
d5 {[%clk 0:02:28.3]} 6. e5 {[%clk 0:02:58.8]} 6... Ne4 {[%clk 0:02:28.4]} 7.
Bd3 {[%clk 0:02:59.3]} 7... c5 {[%clk 0:02:24.4]} 8. Nf3 {[%clk 0:02:58.9]} 8...
cxd4 {[%clk 0:02:23.8]} 9. Nxd4 {[%clk 0:02:59.8]} 9... Nd7 {[%clk 0:02:23.9]}
10. Bxe4 {[%clk 0:03:00.1]} 10... dxe4 {[%clk 0:02:22.2]} 11. Qxe4 {[%clk
0:03:01]} 11... Bxc3+ {[%clk 0:02:16.5]} 12. bxc3 {[%clk 0:03:01.9]} 12... Qa5
{[%clk 0:02:16.6]} 13. O-O {[%clk 0:03:01.9]} 13... Qxe5 {[%clk 0:02:16.3]} 14.
Qh4 {[%clk 0:03:01.8]} 14... Nf6 {[%clk 0:02:12.1]} 15. Ba3 {[%clk 0:02:18.4]}
15... Rd8 {[%clk 0:02:02.8]} 16. Nb5 {[%clk 0:01:58.6]} 16... Bd7 {[%clk
0:01:38.9]} 17. Be7 {[%clk 0:01:47]} 17... Rdc8 {[%clk 0:01:38]} 18. Rfe1 {[%clk
0:01:42.6]} 18... Qf5 {[%clk 0:01:19.2]} 19. Nd6 {[%clk 0:01:39.2]} 19... Qg4
{[%clk 0:01:15]} 20. Bxf6 {[%clk 0:01:37.3]} 20... Qxh4 {[%clk 0:01:14.2]} 21.
Bxh4 {[%clk 0:01:37.4]} 21... Rc6 {[%clk 0:01:15.1]} 22. Bg3 {[%clk 0:01:34.5]}
22... f6 {[%clk 0:01:12.8]} 23. Nxb7 {[%clk 0:01:31.6]} 23... e5 {[%clk
0:01:12.3]} 24. Red1 {[%clk 0:01:24.7]} 24... Be6 {[%clk 0:01:06]} 25. Nd8
{[%clk 0:01:17.8]} 25... Ra6 {[%clk 0:01:05.3]} 26. Nxe6 {[%clk 0:01:16.7]}
26... Rxe6 {[%clk 0:01:06.2]} 27. Rd5 {[%clk 0:01:14.3]} 27... Rc8 {[%clk
0:01:06]} 28. c5 {[%clk 0:01:13.9]} 28... Rec6 {[%clk 0:01:05.6]} 29. f4 {[%clk
0:01:13.4]} 29... exf4 {[%clk 0:01:05.3]} 30. Bxf4 {[%clk 0:01:14.3]} 30... Rxc5
{[%clk 0:01:05.4]} 31. Rxc5 {[%clk 0:01:13.8]} 31... Rxc5 {[%clk 0:01:06.3]} 32.
Rc1 {[%clk 0:01:12.6]} 32... Kf7 {[%clk 0:01:05.4]} 33. Be3 {[%clk 0:01:11.4]}
33... Rc4 {[%clk 0:01:05.2]} 34. Kf2 {[%clk 0:01:10.9]} 34... Ke6 {[%clk
0:01:05.2]} 35. Ke2 {[%clk 0:01:11.4]} 35... Ra4 {[%clk 0:01:03.3]} 36. Rc2
{[%clk 0:01:11.5]} 36... Kd5 {[%clk 0:01:03.5]} 37. Kd3 {[%clk 0:01:11.6]} 37...
f5 {[%clk 0:01:02.4]} 38. c4+ {[%clk 0:01:08.7]} 38... Ke6 {[%clk 0:01:02.2]}
39. c5 {[%clk 0:01:05.4]} 39... Kd7 {[%clk 0:01:02.3]} 40. c6+ {[%clk
0:01:04.8]} 40... Kc8 {[%clk 0:01:02.7]} 41. Bd4 {[%clk 0:01:01.9]} 41... g6
{[%clk 0:01:01.9]} 42. g3 {[%clk 0:00:57]} 42... Ra5 {[%clk 0:00:56]} 43. Kc4
{[%clk 0:00:54.8]} 43... Ra4+ {[%clk 0:00:55]} 44. Kd5 {[%clk 0:00:54.5]} 44...
Ra5+ {[%clk 0:00:55.3]} 45. Bc5 {[%clk 0:00:53.6]} 45... Ra4 {[%clk 0:00:56.2]}
46. Re2 {[%clk 0:00:52.2]} 46... Re4 {[%clk 0:00:56.6]} 47. Rxe4 {[%clk
0:00:51.9]} 47... fxe4 {[%clk 0:00:57.5]} 48. Kxe4 {[%clk 0:00:51.9]} 48... Kc7
{[%clk 0:00:58.4]} 49. Kd5 {[%clk 0:00:52.2]} 49... h5 {[%clk 0:00:59]} 50. Bxa7
{[%clk 0:00:51.2]} 50... g5 {[%clk 0:00:58.3]} 51. Be3 {[%clk 0:00:50.8]} 51...
g4 {[%clk 0:00:57.7]} 52. Bf4+ {[%clk 0:00:50.7]} 52... Kc8 {[%clk 0:00:57.8]}
53. a4 {[%clk 0:00:49.8]} 53... Kd8 {[%clk 0:00:58.7]} 54. a5 {[%clk 0:00:50]}
54... Kc8 {[%clk 0:00:59.6]} 55. a6 {[%clk 0:00:50.4]} 55... h4 {[%clk
0:00:59.1]} 56. a7 {[%clk 0:00:50.3]} 56... hxg3 {[%clk 0:00:58.7]} 57. a8=Q#
{[%clk 0:00:50.5]} 1-0

[Event "Late-Titled-Tuesday-Blitz-May-28-2024"]
[Site "Chess.com"]
[Date "2024.05.28"]
[Round "10"]
[White "GoltsevDmitry2000"]
[Black "Connectedcloud"]
[Result "1-0"]
[WhiteElo "2701"]
[BlackElo "2247"]
[TimeControl "180+1"]
[EndTime "15:54:14 PDT"]
[Termination "GoltsevDmitry2000 won by resignation"]

1. e4 {[%clk 0:03:00.9]} 1... c5 {[%clk 0:02:58]} 2. Nf3 {[%clk 0:03:00.7]} 2...
d6 {[%clk 0:02:57.8]} 3. d4 {[%clk 0:03:01.6]} 3... cxd4 {[%clk 0:02:58.5]} 4.
Nxd4 {[%clk 0:03:02.4]} 4... Nf6 {[%clk 0:02:58.9]} 5. Nc3 {[%clk 0:03:02.9]}
5... a6 {[%clk 0:02:59.5]} 6. Be2 {[%clk 0:03:03.4]} 6... e5 {[%clk 0:02:59.2]}
7. Nf5 {[%clk 0:03:03.7]} 7... d5 {[%clk 0:02:56.8]} 8. Bg5 {[%clk 0:03:04.2]}
8... d4 {[%clk 0:02:56.2]} 9. Bxf6 {[%clk 0:03:04.8]} 9... gxf6 {[%clk 0:02:55]}
10. Nb1 {[%clk 0:03:05.3]} 10... Nc6 {[%clk 0:02:49.6]} 11. Nd2 {[%clk
0:03:05.5]} 11... Bxf5 {[%clk 0:02:48.4]} 12. exf5 {[%clk 0:03:06.4]} 12... Qd7
{[%clk 0:02:34.5]} 13. Bd3 {[%clk 0:03:06.5]} 13... Rg8 {[%clk 0:02:26.3]} 14.
Ne4 {[%clk 0:03:06.2]} 14... Be7 {[%clk 0:02:20.4]} 15. Qh5 {[%clk 0:03:06.6]}
15... Nb4 {[%clk 0:01:44.9]} 16. Bc4 {[%clk 0:03:06]} 16... Rf8 {[%clk 0:01:41]}
17. O-O-O {[%clk 0:03:04.2]} 17... Rc8 {[%clk 0:01:39.3]} 18. Bb3 {[%clk
0:03:04.2]} 18... Qc6 {[%clk 0:01:27.7]} 19. Rhe1 {[%clk 0:03:02.1]} 19... Nxc2
{[%clk 0:01:27.7]} 20. Kb1 {[%clk 0:03:00.6]} 20... Nxe1 {[%clk 0:01:24.7]} 21.
Rxe1 {[%clk 0:03:01.5]} 21... d3 {[%clk 0:01:14.8]} 22. f4 {[%clk 0:03:02.1]}
22... Bb4 {[%clk 0:01:07.2]} 23. Nxf6+ {[%clk 0:02:21]} 23... Qxf6 {[%clk
0:01:06.9]} 24. Rxe5+ {[%clk 0:02:21.7]} 24... Be7 {[%clk 0:01:01.4]} 25. a3
{[%clk 0:02:16.4]} 25... d2 {[%clk 0:00:55.1]} 26. Qf3 {[%clk 0:02:08.7]} 26...
Rc6 {[%clk 0:00:33.9]} 27. Ka2 {[%clk 0:02:01.7]} 27... Qd6 {[%clk 0:00:30.8]}
28. Rd5 {[%clk 0:02:01.6]} 28... Qc7 {[%clk 0:00:20.2]} 29. Rxd2 {[%clk
0:02:01.6]} 29... Bf6 {[%clk 0:00:17.2]} 30. Qd5 {[%clk 0:02:00.3]} 30... Rc5
{[%clk 0:00:09.6]} 31. Re2+ {[%clk 0:01:59.1]} 31... Be7 {[%clk 0:00:09.7]} 32.
Qd4 {[%clk 0:01:58.6]} 32... f6 {[%clk 0:00:09.1]} 33. Be6 {[%clk 0:01:55.9]}
33... Rc6 {[%clk 0:00:08.8]} 34. Qd1 {[%clk 0:01:43.6]} 34... Rd6 {[%clk
0:00:08.9]} 35. Qf1 {[%clk 0:01:41.5]} 35... b5 {[%clk 0:00:03.2]} 36. Qf3
{[%clk 0:01:41.4]} 36... Rxe6 {[%clk 0:00:02.9]} 37. Rxe6 {[%clk 0:01:37.5]}
37... Rf7 {[%clk 0:00:02]} 38. Qa8+ {[%clk 0:01:35.4]} 38... Qd8 {[%clk
0:00:02.2]} 39. Qc6+ {[%clk 0:01:31.4]} 39... Kf8 {[%clk 0:00:01.9]} 40. g4
{[%clk 0:01:29.6]} 40... a5 {[%clk 0:00:01]} 41. Qxb5 {[%clk 0:01:27.4]} 41...
a4 {[%clk 0:00:01.9]} 42. Qxa4 {[%clk 0:01:27]} 42... Qd5+ {[%clk 0:00:02.6]}
43. Qb3 {[%clk 0:01:27.2]} 43... Qxb3+ {[%clk 0:00:02.6]} 44. Kxb3 {[%clk
0:01:28.1]} 44... Rg7 {[%clk 0:00:03.3]} 45. h3 {[%clk 0:01:28.2]} 45... h5
{[%clk 0:00:03.7]} 46. g5 {[%clk 0:01:27.9]} 46... fxg5 {[%clk 0:00:03.8]} 47.
f6 {[%clk 0:01:28.5]} 47... Rf7 {[%clk 0:00:03.5]} 48. fxe7+ {[%clk 0:01:28]}
48... Rxe7 {[%clk 0:00:04.4]} 49. Rxe7 {[%clk 0:01:27.8]} 49... Kxe7 {[%clk
0:00:05.3]} 50. fxg5 {[%clk 0:01:28.4]} 50... Kf7 {[%clk 0:00:06.2]} 51. h4
{[%clk 0:01:28.9]} 51... Kg6 {[%clk 0:00:07.1]} 52. a4 {[%clk 0:01:29.8]} 1-0

[Event "Late-Titled-Tuesday-Blitz-May-28-2024"]
[Site "Chess.com"]
[Date "2024.05.28"]
[Round "10"]
[White "DeTimmerman"]
[Black "ATM622"]
[Result "1-0"]
[WhiteElo "2747"]
[BlackElo "2580"]
[TimeControl "180+1"]
[EndTime "15:54:16 PDT"]
[Termination "DeTimmerman won by resignation"]

1. b4 {[%clk 0:02:59.4]} 1... d5 {[%clk 0:02:56.2]} 2. Bb2 {[%clk 0:02:58.8]}
2... Nf6 {[%clk 0:02:55.3]} 3. b5 {[%clk 0:02:58.4]} 3... Nbd7 {[%clk
0:02:55.1]} 4. Nf3 {[%clk 0:02:54.2]} 4... e6 {[%clk 0:02:54.9]} 5. e3 {[%clk
0:02:53.3]} 5... c5 {[%clk 0:02:54.2]} 6. c4 {[%clk 0:02:52.2]} 6... Be7 {[%clk
0:02:49.8]} 7. Be2 {[%clk 0:02:51.3]} 7... O-O {[%clk 0:02:49]} 8. a4 {[%clk
0:02:48.1]} 8... a5 {[%clk 0:02:44.5]} 9. O-O {[%clk 0:02:47.4]} 9... b6 {[%clk
0:02:44.6]} 10. d4 {[%clk 0:02:42.9]} 10... Bb7 {[%clk 0:02:44]} 11. Nbd2 {[%clk
0:02:40.6]} 11... Rc8 {[%clk 0:02:43.4]} 12. Rc1 {[%clk 0:02:40.7]} 12... Ne4
{[%clk 0:02:25.8]} 13. Nxe4 {[%clk 0:02:23.9]} 13... dxe4 {[%clk 0:02:26.7]} 14.
Nd2 {[%clk 0:02:24.3]} 14... cxd4 {[%clk 0:02:26.7]} 15. Bxd4 {[%clk 0:02:24.2]}
15... Bc5 {[%clk 0:02:16.8]} 16. Nb3 {[%clk 0:02:21.2]} 16... Bxd4 {[%clk
0:02:08.9]} 17. Qxd4 {[%clk 0:02:22.1]} 17... Nc5 {[%clk 0:02:05.5]} 18. Nxc5
{[%clk 0:02:16]} 18... Rxc5 {[%clk 0:02:04.7]} 19. Rfd1 {[%clk 0:02:12.8]} 19...
Qc7 {[%clk 0:02:03.5]} 20. Qd6 {[%clk 0:02:05.2]} 20... Rc8 {[%clk 0:01:59.7]}
21. Qxc7 {[%clk 0:02:03.2]} 21... R5xc7 {[%clk 0:01:59.1]} 22. Rd6 {[%clk
0:02:04.1]} 22... h6 {[%clk 0:01:49.1]} 23. Rcd1 {[%clk 0:01:52.3]} 23... Rxc4
{[%clk 0:01:40.6]} 24. Bxc4 {[%clk 0:01:48.8]} 24... Rxc4 {[%clk 0:01:40.1]} 25.
Rxb6 {[%clk 0:01:49.1]} 25... Bd5 {[%clk 0:01:37]} 26. Ra6 {[%clk 0:01:33.1]}
26... Rxa4 {[%clk 0:01:36.2]} 27. Rb1 {[%clk 0:01:29.4]} 27... Bc4 {[%clk
0:01:12.4]} 28. Ra8+ {[%clk 0:01:24.8]} 28... Kh7 {[%clk 0:01:09.7]} 29. b6
{[%clk 0:01:25.7]} 29... Bd5 {[%clk 0:01:06.3]} 30. Ra7 {[%clk 0:01:25.5]} 30...
Kg6 {[%clk 0:00:56.9]} 31. b7 {[%clk 0:01:24.6]} 31... Bxb7 {[%clk 0:00:56.3]}
32. Raxb7 {[%clk 0:01:25.5]} 32... Ra2 {[%clk 0:00:52.8]} 33. R7b2 {[%clk
0:01:24.4]} 33... Ra4 {[%clk 0:00:51.7]} 34. h4 {[%clk 0:01:22.6]} 34... h5
{[%clk 0:00:46.7]} 35. Rd2 {[%clk 0:01:17.8]} 35... Ra3 {[%clk 0:00:42.8]} 36.
Rdd1 {[%clk 0:01:16.8]} 36... Rc3 {[%clk 0:00:38.8]} 37. Ra1 {[%clk 0:01:17]}
37... Rc5 {[%clk 0:00:37.8]} 38. Rd4 {[%clk 0:01:17.1]} 38... f5 {[%clk
0:00:33.9]} 39. Rda4 {[%clk 0:01:17.3]} 39... Kf6 {[%clk 0:00:25.9]} 40. Rxa5
{[%clk 0:01:10.6]} 40... Rc8 {[%clk 0:00:21.9]} 41. g3 {[%clk 0:01:10.5]} 41...
g6 {[%clk 0:00:19.4]} 42. Ra8 {[%clk 0:01:08.2]} 42... Rc7 {[%clk 0:00:19]} 43.
Kg2 {[%clk 0:01:08.6]} 43... Rd7 {[%clk 0:00:18.9]} 44. R1a7 {[%clk 0:01:08.9]}
44... Rd6 {[%clk 0:00:18.7]} 45. Rf8+ {[%clk 0:01:09.2]} 45... Ke5 {[%clk
0:00:18.3]} 46. Rg7 {[%clk 0:01:09.7]} 1-0

[Event "Late-Titled-Tuesday-Blitz-May-28-2024"]
[Site "Chess.com"]
[Date "2024.05.28"]
[Round "10"]
[White "AryanTari"]
[Black "KorolDimitriy75"]
[Result "1-0"]
[WhiteElo "3008"]
[BlackElo "2466"]
[TimeControl "180+1"]
[EndTime "15:54:18 PDT"]
[Termination "AryanTari won on time"]

1. d4 {[%clk 0:03:00.9]} 1... Nf6 {[%clk 0:02:59.7]} 2. Nf3 {[%clk 0:02:58.7]}
2... g6 {[%clk 0:02:59.7]} 3. Nbd2 {[%clk 0:02:51.4]} 3... c5 {[%clk 0:02:53.6]}
4. dxc5 {[%clk 0:02:49.5]} 4... Na6 {[%clk 0:02:44.7]} 5. e4 {[%clk 0:02:32.4]}
5... Nxc5 {[%clk 0:02:18.6]} 6. e5 {[%clk 0:02:32.4]} 6... Nd5 {[%clk 0:01:50]}
7. Ne4 {[%clk 0:02:14.8]} 7... Nxe4 {[%clk 0:01:15.3]} 8. Qxd5 {[%clk
0:02:13.7]} 8... f5 {[%clk 0:01:15.5]} 9. Bb5 {[%clk 0:01:51.8]} 9... Bg7 {[%clk
0:00:51.5]} 10. Ng5 {[%clk 0:01:22.7]} 10... Nxg5 {[%clk 0:00:17.8]} 11. Bxg5
{[%clk 0:01:23.6]} 11... a6 {[%clk 0:00:16.4]} 12. Ba4 {[%clk 0:01:18.6]} 12...
Qb6 {[%clk 0:00:10.8]} 13. O-O-O {[%clk 0:01:13.4]} 13... h6 {[%clk 0:00:08.2]}
14. Bxd7+ {[%clk 0:01:11.3]} 14... Kf8 {[%clk 0:00:08.3]} 15. Be3 {[%clk
0:01:01]} 15... Qc7 {[%clk 0:00:06.9]} 16. e6 {[%clk 0:01:00.6]} 16... Qe5
{[%clk 0:00:05.8]} 17. Qxe5 {[%clk 0:00:52.4]} 17... Bxe5 {[%clk 0:00:06.7]} 18.
Bc5 {[%clk 0:00:50.8]} 18... Bf6 {[%clk 0:00:06]} 19. b4 {[%clk 0:00:44.5]}
19... b5 {[%clk 0:00:05.5]} 20. Bc6 {[%clk 0:00:43.8]} 20... Rb8 {[%clk
0:00:05.7]} 21. Ba7 {[%clk 0:00:43.4]} 21... Be5 {[%clk 0:00:03.2]} 22. Bxb8
{[%clk 0:00:39.9]} 22... Bxb8 {[%clk 0:00:04.1]} 23. Rd8+ {[%clk 0:00:38]} 23...
Kg7 {[%clk 0:00:04.5]} 24. Rhd1 {[%clk 0:00:36.1]} 24... Bd6 {[%clk 0:00:01.7]}
25. R1xd6 {[%clk 0:00:34]} 1-0